fUSD/lending_fUSD_20251225
["ID","MTS","AMOUNT","RATE_DAILY","PERIOD"]
[399711311,1766631126307,-514.27,0.00035068,11]
[399711312,1766631126320,-500.0,0.00035068,11]
[399711313,1766631126331,-500.0,0.00035068,11]
[399711314,1766631126342,-500.0,0.00035068,11]
[399711315,1766631126353,-500.0,0.00035068,11]
[399711316,1766631126364,-500.0,0.00035068,11]
[399711317,1766631126374,-500.0,0.00035068,11]
[399711318,1766631126385,-500.0,0.00035068,11]
[399711319,1766631126396,-500.0,0.00035068,11]
[399711320,1766631126407,-500.0,0.00035068,11]
[399711321,1766631126418,-500.0,0.00035068,11]
[399711322,1766631126429,-14053.25,0.00035068,5]
[399711323,1766631126439,-804.57,0.00035068,2]
[399711324,1766631126449,-500.0,0.00035068,11]
[399711325,1766631126459,-500.0,0.00035068,11]
[399711326,1766631126470,-656.28,0.00035068,11]
[399711327,1766631126481,-1684.56267107,0.00035092,5]
[399711328,1766631126491,-863.28,0.00035116,5]
[399711329,1766631126501,-872.79,0.00035116,5]
[399711330,1766631126511,-874.19,0.00035116,5]
[399711331,1766631126522,-875.15,0.00035117,5]
[399711332,1766631126531,-160.0,0.00035155,11]
[399711333,1766631126541,-344.91441206,0.00035161,2]
[399711334,1766631126551,-401.19111454,0.00035161,2]
[399711335,1766631126562,-644.79446246,0.00035164,2]
[399711336,1766631126572,-384.6,0.000352,14]
[399711337,1766631126582,-308.47,0.000352,30]
[399711338,1766631126592,-2000.0,0.000352,2]
[399711339,1766631126602,-150.0,0.00035287,2]
[399711340,1766631126612,-150.0,0.00035287,2]
[399711341,1766631126622,-13127.5,0.00035288,4]
[399711342,1766631126633,-500.0,0.00035342,11]
[399711343,1766631126643,-500.0,0.00035342,2]
[399711344,1766631126653,-500.0,0.00035342,11]
[399711345,1766631126663,-500.0,0.00035342,11]
[399711346,1766631126674,-500.0,0.00035342,11]
[399711347,1766631126684,-714.65,0.00035342,7]
[399711348,1766631126695,-500.0,0.00035342,11]
[399711349,1766631126705,-359.67000646,0.00035342,11]
[399711350,1766631126716,-500.0,0.00035342,11]
[399711351,1766631126726,-1367.09,0.00035342,11]
[399711352,1766631126736,-500.0,0.00035342,11]
[399711353,1766631126746,-500.0,0.00035342,2]
[399711354,1766631126965,-1354.83,0.00035342,2]
[399711355,1766631126975,-500.0,0.00035342,11]
[399711356,1766631126985,-641.85,0.00035342,10]
[399711357,1766631126994,-500.0,0.00035342,11]
[399711358,1766631127003,-500.0,0.00035342,11]
[399711359,1766631127013,-500.0,0.00035342,11]
[399711360,1766631127022,-500.0,0.00035342,11]
[399711361,1766631127031,-500.0,0.00035342,11]
[399711362,1766631127040,-500.0,0.00035342,11]
[399711363,1766631127050,-500.0,0.00035342,11]
[399711364,1766631127059,-505.07,0.00035342,2]
[399711365,1766631127068,-500.0,0.00035342,11]
[399711366,1766631127078,-500.0,0.00035342,11]
[399711367,1766631127087,-295.26078147,0.00035342,11]
[399711368,1766631127097,-573.17,0.00035342,11]
[399711369,1766631127106,-500.0,0.00035342,11]
[399711370,1766631127115,-500.0,0.00035342,11]
[399711371,1766631127124,-500.0,0.00035342,11]
[399711372,1766631127133,-500.0,0.00035342,11]
[399711373,1766631127143,-500.0,0.00035342,11]
[399711374,1766631127153,-500.0,0.00035342,11]
[399711375,1766631127163,-500.0,0.00035342,11]
[399711376,1766631127172,-500.0,0.00035342,11]
[399711377,1766631127182,-500.0,0.00035342,11]
[399711378,1766631127192,-479.31452036,0.00035342,11]
[399711379,1766631127201,-500.0,0.00035342,11]
[399711380,1766631127211,-3742.25,0.00035342,11]
[399711381,1766631127220,-500.0,0.00035342,11]
[399711382,1766631127230,-500.0,0.00035342,11]
[399711383,1766631127241,-500.0,0.00035342,11]
[399711384,1766631127251,-150.89277995,0.00035342,11]
[399711385,1766631127261,-639.08,0.00035342,11]
[399711386,1766631127270,-236.73120319,0.00035342,11]
[399711387,1766631127282,-500.0,0.00035342,11]
[399711388,1766631127291,-500.0,0.00035342,11]
[399711389,1766631127301,-500.0,0.00035342,11]
[399711390,1766631127313,-234.31188035,0.00035342,11]
[399711391,1766631127323,-500.0,0.00035342,11]
[399711392,1766631127333,-500.0,0.00035342,11]
[399711393,1766631127343,-500.0,0.00035342,11]
[399711394,1766631127352,-500.0,0.00035342,11]
[399711395,1766631127363,-500.0,0.00035342,11]
[399711396,1766631127373,-500.0,0.00035342,11]
[399711397,1766631127383,-285.0315353,0.00035342,11]
[399711398,1766631127393,-566.13,0.00035342,11]
[399711399,1766631127402,-470.14622216,0.00035342,11]
[399711400,1766631127413,-509.97,0.00035342,11]
[399711401,1766631127423,-500.0,0.00035342,11]
[399711402,1766631127433,-500.0,0.00035342,11]
[399711403,1766631127443,-500.0,0.00035342,11]
[399711404,1766631127453,-500.0,0.00035342,11]
[399711405,1766631127463,-500.0,0.00035342,11]
[399711406,1766631127472,-500.0,0.00035342,11]
[399711407,1766631127481,-876.11,0.00035342,11]
[399711408,1766631127492,-500.0,0.00035342,11]
[399711409,1766631127503,-500.0,0.00035342,11]
[399711410,1766631127514,-500.0,0.00035342,11]
[399711411,1766631127524,-500.0,0.00035342,11]
[399711412,1766631127533,-500.0,0.00035342,11]
[399711413,1766631127543,-500.0,0.00035342,11]
[399711414,1766631127553,-500.0,0.00035342,11]
[399711415,1766631127563,-500.0,0.00035342,11]
[399711416,1766631127572,-500.0,0.00035342,11]
[399711417,1766631127582,-536.03,0.00035342,11]
[399711418,1766631127591,-500.0,0.00035342,11]
[399711419,1766631127601,-500.0,0.00035342,11]
[399711420,1766631127611,-632.57,0.00035342,11]
[399711421,1766631127620,-500.0,0.00035342,11]
[399711422,1766631127629,-500.0,0.00035342,2]
[399711423,1766631127639,-500.0,0.00035342,11]
[399711424,1766631127654,-500.0,0.00035342,11]
[399711425,1766631127663,-998.82,0.00035342,11]
[399711426,1766631127673,-500.0,0.00035342,11]
[399711427,1766631127683,-500.0,0.00035342,11]
[399711428,1766631127692,-500.0,0.00035342,11]
[399711429,1766631127702,-500.0,0.00035342,11]
[399711430,1766631127712,-500.0,0.00035342,11]
[399711431,1766631127721,-500.0,0.00035342,11]
[399711432,1766631127731,-500.0,0.00035342,11]
[399711433,1766631127741,-500.0,0.00035342,11]
[399711434,1766631127751,-500.0,0.00035342,11]
[399711435,1766631127760,-500.0,0.00035342,11]
[399711436,1766631127770,-500.0,0.00035342,11]
[399711437,1766631127779,-500.0,0.00035342,11]
[399711438,1766631127789,-160.15999094,0.00035342,11]
[399711439,1766631127799,-500.0,0.00035342,11]
[399711440,1766631127808,-646.63,0.00035342,11]
[399711441,1766631127818,-500.0,0.00035342,11]
[399711442,1766631127828,-572.07,0.00035342,11]
[399711443,1766631127839,-500.0,0.00035342,11]
[399711444,1766631127849,-500.0,0.00035342,11]
[399711445,1766631127859,-500.0,0.00035342,11]
[399711446,1766631127869,-642.5,0.00035342,11]
[399711447,1766631127879,-574.86,0.00035342,11]
[399711448,1766631127889,-642.68,0.00035342,11]
[399711449,1766631127898,-598.62021184,0.00035342,11]
[399711450,1766631127908,-1734.97,0.00035342,11]
[399711451,1766631127918,-500.0,0.00035342,11]
[399711452,1766631127927,-500.0,0.00035342,11]
[399711453,1766631127937,-500.0,0.00035342,11]
[399711454,1766631127947,-500.0,0.00035342,11]
[399711455,1766631127956,-500.0,0.00035342,11]
[399711456,1766631127967,-500.0,0.00035342,11]
[399711457,1766631127977,-266.60933427,0.00035342,11]
[399711458,1766631127987,-564.76,0.00035342,11]
[399711459,1766631127998,-500.0,0.00035342,11]
[399711460,1766631128010,-500.0,0.00035342,11]
[399711461,1766631128021,-500.0,0.00035342,11]
[399711462,1766631128033,-500.0,0.00035342,11]
[399711463,1766631128044,-500.0,0.00035342,11]
[399711464,1766631128054,-500.0,0.00035342,11]
[399711465,1766631128066,-500.0,0.00035342,11]
[399711466,1766631128077,-500.0,0.00035342,11]
[399711467,1766631128088,-500.0,0.00035342,11]
[399711468,1766631128099,-500.0,0.00035342,11]
[399711469,1766631128110,-543.77,0.00035342,11]
[399711470,1766631128121,-500.0,0.00035342,11]
[399711471,1766631128131,-500.0,0.00035342,11]
[399711472,1766631128141,-500.0,0.00035342,11]
[399711473,1766631128153,-609.66,0.00035342,11]
[399711474,1766631128165,-500.0,0.00035342,11]
[399711475,1766631128175,-500.0,0.00035342,11]
[399711476,1766631128185,-500.0,0.00035342,11]
[399711477,1766631128196,-500.0,0.00035342,11]
[399711478,1766631128208,-500.0,0.00035342,11]
[399711479,1766631128218,-500.0,0.00035342,11]
[399711480,1766631128228,-542.08791952,0.00035342,11]
[399711481,1766631128241,-657.18,0.00035342,11]
[399711482,1766631128251,-531.72241498,0.00035342,11]
[399711483,1766631128261,-543.46,0.00035342,11]
[399711484,1766631128272,-500.0,0.00035342,11]
[399711485,1766631128283,-500.0,0.00035342,11]
[399711486,1766631128293,-500.0,0.00035342,11]
[399711487,1766631128303,-500.0,0.00035342,11]
[399711488,1766631128314,-974.52,0.00035342,11]
[399711489,1766631128324,-597.79,0.00035342,11]
[399711490,1766631128335,-500.0,0.00035342,11]
[399711491,1766631128346,-500.0,0.00035342,11]
[399711492,1766631128357,-425.96401198,0.00035342,11]
[399711493,1766631128367,-500.0,0.00035342,11]
[399711494,1766631128377,-511.3,0.00035342,11]
[399711495,1766631128389,-500.0,0.00035342,11]
[399711496,1766631128399,-500.0,0.00035342,11]
[399711497,1766631128409,-500.0,0.00035342,11]
[399711498,1766631128421,-500.0,0.00035342,11]
[399711499,1766631128432,-500.0,0.00035342,11]
[399711500,1766631128443,-592.68,0.00035342,11]
[399711501,1766631128453,-500.0,0.00035342,11]
[399711502,1766631128464,-500.0,0.00035342,11]
[399711503,1766631128474,-255.85032163,0.00035342,11]
[399711504,1766631128484,-500.0,0.00035342,11]
[399711505,1766631128494,-500.0,0.00035342,11]
[399711506,1766631128504,-519.26,0.00035342,11]
[399711507,1766631128515,-352.37,0.00035342,2]
[399711508,1766631128525,-500.0,0.00035342,11]
[399711509,1766631128535,-372.68062074,0.00035342,11]
[399711510,1766631128546,-500.0,0.00035342,11]
[399711511,1766631128556,-421.39,0.00035342,2]
[399711512,1766631128567,-500.0,0.00035342,11]
[399711513,1766631128576,-500.0,0.00035342,11]
[399711514,1766631128586,-500.0,0.00035342,11]
[399711515,1766631128596,-500.0,0.00035342,11]
[399711516,1766631128605,-500.0,0.00035342,2]
[399711517,1766631128616,-500.0,0.00035342,11]
[399711518,1766631128626,-500.0,0.00035342,11]
[399711519,1766631128636,-953.97,0.00035342,11]
[399711520,1766631128646,-2740.45,0.00035342,11]
[399711521,1766631128656,-500.0,0.00035342,11]
[399711522,1766631128667,-500.0,0.00035342,11]
[399711523,1766631128676,-500.0,0.00035342,30]
[399711524,1766631128687,-524.99,0.00035342,11]
[399711525,1766631128698,-500.0,0.00035342,11]
[399711526,1766631128707,-500.0,0.00035342,11]
[399711527,1766631128716,-500.0,0.00035342,11]
[399711528,1766631128726,-500.0,0.00035342,11]
[399711529,1766631128735,-705.78,0.00035342,11]
[399711530,1766631128746,-555.98,0.00035342,11]
[399711531,1766631128756,-500.0,0.00035342,11]
[399711532,1766631128766,-500.0,0.00035342,11]
[399711533,1766631128777,-737.49,0.00035342,11]
[399711534,1766631128787,-500.0,0.00035342,11]
[399711535,1766631128797,-292.46827113,0.00035342,11]
[399711536,1766631128808,-518.13,0.00035342,11]
[399711537,1766631128818,-500.0,0.00035342,11]
[399711538,1766631128828,-500.0,0.00035342,11]
[399711539,1766631128837,-580.51,0.00035342,11]
[399711540,1766631128847,-560.48,0.00035342,11]
[399711541,1766631128857,-727.69,0.00035342,11]
[399711542,1766631128868,-500.0,0.00035342,11]
[399711543,1766631128878,-536.36,0.00035342,11]
[399711544,1766631128888,-500.0,0.00035342,11]
[399711545,1766631128898,-514.27,0.00035342,11]
[399711546,1766631128908,-500.0,0.00035342,11]
[399711547,1766631128918,-500.0,0.00035342,11]
[399711548,1766631128929,-501.00000084,0.00035342,11]
[399711549,1766631128939,-500.0,0.00035342,11]
[399711550,1766631128949,-500.0,0.00035342,11]
[399711551,1766631128959,-500.0,0.00035342,11]
[399711552,1766631128968,-500.0,0.00035342,11]
[399711553,1766631128979,-267.79576961,0.00035342,11]
[399711554,1766631128989,-500.0,0.00035342,11]
[399711555,1766631128999,-500.0,0.00035342,11]
[399711556,1766631129010,-14053.25,0.00035342,5]
[399711557,1766631129020,-804.57,0.00035342,2]
[399711558,1766631129030,-500.0,0.00035342,11]
[399711559,1766631129039,-500.0,0.00035342,11]
[399711560,1766631129049,-656.28,0.00035342,11]
[399711561,1766631129060,-1000.0,0.000354,7]
[399711562,1766631129070,-5245.04922731,0.0003544,2]
[399711563,1766631129079,-5000.0,0.0003544,2]
[399711564,1766631129089,-5000.0,0.0003544,2]
[399711565,1766631129099,-5000.0,0.0003544,2]
[399711566,1766631129109,-5000.0,0.0003544,2]
[399711567,1766631129119,-861.78,0.00035501,5]
[399711568,1766631129129,-976.0,0.000356,2]
[399711569,1766631129140,-305.0,0.000356,2]
[399711570,1766631129151,-200.0,0.000356,2]
[399711571,1766631129161,-100025.02280224,0.0003561,2]
[399711572,1766631129171,-500.0,0.00035616,11]
[399711573,1766631129182,-500.0,0.00035616,2]
[399711574,1766631129192,-500.0,0.00035616,11]
[399711575,1766631129202,-544.61978306,0.00035616,11]
[399711576,1766631129213,-500.0,0.00035616,11]
[399711577,1766631129223,-714.65,0.00035616,7]
[399711578,1766631129236,-500.0,0.00035616,11]
[399711579,1766631129246,-500.0,0.00035616,11]
[399711580,1766631129256,-1367.09,0.00035616,11]
[399711581,1766631129266,-500.0,0.00035616,11]
[399711582,1766631129278,-500.0,0.00035616,2]
[399711583,1766631129288,-1354.83,0.00035616,2]
[399711584,1766631129298,-500.0,0.00035616,11]
[399711585,1766631129309,-641.85,0.00035616,10]
[399711586,1766631129318,-500.0,0.00035616,11]
[399711587,1766631129327,-500.0,0.00035616,11]
[399711588,1766631129337,-500.0,0.00035616,11]
[399711589,1766631129347,-500.0,0.00035616,11]
[399711590,1766631129357,-460.33194761,0.00035616,11]
[399711591,1766631129368,-500.0,0.00035616,11]
[399711592,1766631129378,-500.0,0.00035616,11]
[399711593,1766631129388,-505.07,0.00035616,2]
[399711594,1766631129398,-500.0,0.00035616,11]
[399711595,1766631129407,-500.0,0.00035616,11]
[399711596,1766631129418,-573.17,0.00035616,11]
[399711597,1766631129428,-378.78473633,0.00035616,11]
[399711598,1766631129438,-500.0,0.00035616,11]
[399711599,1766631129448,-500.0,0.00035616,11]
[399711600,1766631129457,-500.0,0.00035616,11]
[399711601,1766631129467,-500.0,0.00035616,11]
[399711602,1766631129478,-504.27732505,0.00035616,11]
[399711603,1766631129488,-337.13877493,0.00035616,11]
[399711604,1766631129498,-500.0,0.00035616,11]
[399711605,1766631129508,-500.0,0.00035616,11]
[399711606,1766631129518,-500.0,0.00035616,11]
[399711607,1766631129528,-3742.25,0.00035616,11]
[399711608,1766631129538,-500.0,0.00035616,11]
[399711609,1766631129548,-500.0,0.00035616,11]
[399711610,1766631129558,-500.0,0.00035616,11]
[399711611,1766631129568,-639.08,0.00035616,11]
[399711612,1766631129578,-500.0,0.00035616,11]
[399711613,1766631129587,-500.0,0.00035616,11]
[399711614,1766631129597,-500.0,0.00035616,11]
[399711615,1766631129607,-500.0,0.00035616,11]
[399711616,1766631129618,-500.0,0.00035616,11]
[399711617,1766631129628,-500.0,0.00035616,11]
[399711618,1766631129637,-500.0,0.00035616,11]
[399711619,1766631129647,-500.0,0.00035616,11]
[399711620,1766631129657,-500.0,0.00035616,11]
[399711621,1766631129667,-566.13,0.00035616,11]
[399711622,1766631129677,-509.97,0.00035616,11]
[399711623,1766631129687,-439.90956264,0.00035616,11]
[399711624,1766631129696,-448.74392773,0.00035616,11]
[399711625,1766631129706,-500.0,0.00035616,11]
[399711626,1766631129717,-280.62401759,0.00035616,11]
[399711627,1766631129726,-462.20400308,0.00035616,11]
[399711628,1766631129736,-500.0,0.00035616,11]
[399711629,1766631129746,-876.11,0.00035616,11]
[399711630,1766631129756,-327.16503388,0.00035616,11]
[399711631,1766631129765,-500.0,0.00035616,11]
[399711632,1766631129775,-500.0,0.00035616,11]
[399711633,1766631129785,-500.0,0.00035616,11]
[399711634,1766631129794,-500.0,0.00035616,11]
[399711635,1766631129804,-500.0,0.00035616,11]
[399711636,1766631129813,-500.0,0.00035616,11]
[399711637,1766631129823,-500.0,0.00035616,11]
[399711638,1766631129833,-500.0,0.00035616,11]
[399711639,1766631129843,-536.03,0.00035616,11]
[399711640,1766631129853,-558.89573948,0.00035616,11]
[399711641,1766631129863,-500.0,0.00035616,11]
[399711642,1766631129873,-632.57,0.00035616,11]
[399711643,1766631129883,-500.0,0.00035616,11]
[399711644,1766631129893,-500.0,0.00035616,2]
[399711645,1766631129903,-500.0,0.00035616,11]
[399711646,1766631129914,-500.0,0.00035616,11]
[399711647,1766631129924,-998.82,0.00035616,11]
[399711648,1766631129934,-500.0,0.00035616,11]
[399711649,1766631129944,-358.60901487,0.00035616,11]
[399711650,1766631129954,-500.0,0.00035616,11]
[399711651,1766631129965,-500.0,0.00035616,11]
[399711652,1766631129975,-500.0,0.00035616,11]
[399711653,1766631129985,-500.0,0.00035616,11]
[399711654,1766631129995,-500.0,0.00035616,11]
[399711655,1766631130005,-267.51026584,0.00035616,11]
[399711656,1766631130015,-500.0,0.00035616,11]
[399711657,1766631130025,-500.0,0.00035616,11]
[399711658,1766631130035,-395.40904247,0.00035616,11]
[399711659,1766631130044,-500.0,0.00035616,11]
[399711660,1766631130054,-500.0,0.00035616,11]
[399711661,1766631130063,-646.63,0.00035616,11]
[399711662,1766631130073,-500.0,0.00035616,11]
[399711663,1766631130083,-572.07,0.00035616,11]
[399711664,1766631130093,-500.0,0.00035616,11]
[399711665,1766631130103,-500.0,0.00035616,11]
[399711666,1766631130114,-500.0,0.00035616,11]
[399711667,1766631130124,-642.5,0.00035616,11]
[399711668,1766631130133,-574.86,0.00035616,11]
[399711669,1766631130143,-642.68,0.00035616,11]
[399711670,1766631130153,-1734.97,0.00035616,11]
[399711671,1766631130163,-500.0,0.00035616,11]
[399711672,1766631130173,-500.0,0.00035616,11]
[399711673,1766631130182,-500.0,0.00035616,11]
[399711674,1766631130192,-500.0,0.00035616,11]
[399711675,1766631130202,-500.0,0.00035616,11]
[399711676,1766631130212,-500.0,0.00035616,11]
[399711677,1766631130222,-564.76,0.00035616,11]
[399711678,1766631130233,-500.0,0.00035616,11]
[399711679,1766631130244,-500.0,0.00035616,11]
[399711680,1766631130253,-500.0,0.00035616,11]
[399711681,1766631130263,-500.0,0.00035616,11]
[399711682,1766631130273,-500.0,0.00035616,11]
[399711683,1766631130284,-578.33838244,0.00035616,11]
[399711684,1766631130294,-500.0,0.00035616,11]
[399711685,1766631130306,-500.0,0.00035616,11]
[399711686,1766631130316,-538.57337396,0.00035616,11]
[399711687,1766631130327,-500.0,0.00035616,11]
[399711688,1766631130336,-543.77,0.00035616,11]
[399711689,1766631130347,-500.0,0.00035616,11]
[399711690,1766631130357,-500.0,0.00035616,11]
[399711691,1766631130368,-500.0,0.00035616,11]
[399711692,1766631130378,-609.66,0.00035616,11]
[399711693,1766631130388,-500.0,0.00035616,11]
[399711694,1766631130398,-500.0,0.00035616,11]
[399711695,1766631130409,-500.0,0.00035616,11]
[399711696,1766631130420,-500.0,0.00035616,11]
[399711697,1766631130431,-453.97426893,0.00035616,11]
[399711698,1766631130649,-500.0,0.00035616,11]
[399711699,1766631130660,-657.18,0.00035616,11]
[399711700,1766631130671,-543.46,0.00035616,11]
[399711701,1766631130681,-500.0,0.00035616,11]
[399711702,1766631130691,-500.0,0.00035616,11]
[399711703,1766631130701,-500.0,0.00035616,11]
[399711704,1766631130711,-500.0,0.00035616,11]
[399711705,1766631130721,-974.52,0.00035616,11]
[399711706,1766631130732,-597.79,0.00035616,11]
[399711707,1766631130742,-500.0,0.00035616,11]
[399711708,1766631130752,-500.0,0.00035616,11]
[399711709,1766631130762,-500.0,0.00035616,11]
[399711710,1766631130773,-511.3,0.00035616,11]
[399711711,1766631130783,-500.0,0.00035616,11]
[399711712,1766631130793,-500.0,0.00035616,11]
[399711713,1766631130803,-500.0,0.00035616,11]
[399711714,1766631130813,-500.0,0.00035616,11]
[399711715,1766631130823,-500.0,0.00035616,11]
[399711716,1766631130833,-592.68,0.00035616,11]
[399711717,1766631130844,-500.0,0.00035616,11]
[399711718,1766631130853,-500.0,0.00035616,11]
[399711719,1766631130863,-500.0,0.00035616,11]
[399711720,1766631130873,-3290.73,0.00035616,120]
[399711721,1766631130882,-500.0,0.00035616,11]
[399711722,1766631130892,-519.26,0.00035616,11]
[399711723,1766631130902,-352.37,0.00035616,2]
[399711724,1766631130912,-500.0,0.00035616,11]
[399711725,1766631130922,-500.0,0.00035616,11]
[399711726,1766631130934,-421.39,0.00035616,2]
[399711727,1766631130944,-500.0,0.00035616,11]
[399711728,1766631130954,-500.0,0.00035616,11]
[399711729,1766631130963,-500.0,0.00035616,11]
[399711730,1766631130973,-500.0,0.00035616,11]
[399711731,1766631130983,-500.0,0.00035616,2]
[399711732,1766631130994,-435.62219161,0.00035616,11]
[399711733,1766631131004,-500.0,0.00035616,11]
[399711734,1766631131014,-953.97,0.00035616,11]
[399711735,1766631131024,-2740.45,0.00035616,11]
[399711736,1766631131035,-500.0,0.00035616,11]
[399711737,1766631131045,-500.0,0.00035616,11]
[399711738,1766631131054,-500.0,0.00035616,30]
[399711739,1766631131065,-524.99,0.00035616,11]
[399711740,1766631131075,-500.0,0.00035616,11]
[399711741,1766631131085,-500.0,0.00035616,11]
[399711742,1766631131095,-500.0,0.00035616,11]
[399711743,1766631131105,-500.0,0.00035616,11]
[399711744,1766631131114,-705.78,0.00035616,11]
[399711745,1766631131124,-555.98,0.00035616,11]
[399711746,1766631131134,-500.0,0.00035616,11]
[399711747,1766631131144,-500.0,0.00035616,11]
[399711748,1766631131154,-737.49,0.00035616,11]
[399711749,1766631131164,-500.0,0.00035616,11]
[399711750,1766631131175,-518.13,0.00035616,11]
[399711751,1766631131185,-500.0,0.00035616,11]
[399711752,1766631131195,-187.59420017,0.00035616,11]
[399711753,1766631131205,-580.51,0.00035616,11]
[399711754,1766631131215,-560.48,0.00035616,11]
[399711755,1766631131225,-727.69,0.00035616,11]
[399711756,1766631131238,-500.0,0.00035616,11]
[399711757,1766631131248,-536.36,0.00035616,11]
[399711758,1766631131258,-500.0,0.00035616,11]
[399711759,1766631131267,-514.27,0.00035616,11]
[399711760,1766631131278,-500.0,0.00035616,11]
[399711761,1766631131288,-500.0,0.00035616,11]
[399711762,1766631131298,-500.0,0.00035616,11]
[399711763,1766631131309,-500.0,0.00035616,11]
[399711764,1766631131319,-500.0,0.00035616,11]
[399711765,1766631131328,-500.0,0.00035616,11]
[399711766,1766631131339,-500.0,0.00035616,11]
[399711767,1766631131348,-500.0,0.00035616,11]
[399711768,1766631131358,-14053.25,0.00035616,5]
[399711769,1766631131367,-804.57,0.00035616,2]
[399711770,1766631131378,-500.0,0.00035616,11]
[399711771,1766631131389,-500.0,0.00035616,11]
[399711772,1766631131398,-656.28,0.00035616,11]
[399711773,1766631131408,-558.31,0.00035616,2]
[399711774,1766631131418,-397.9337227,0.00035616,2]
[399711775,1766631131428,-151.0,0.00035616,31]
[399711776,1766631131437,-151.0,0.00035616,31]
[399711777,1766631131447,-151.0,0.00035616,31]
[399711778,1766631131456,-151.0,0.00035616,31]
[399711779,1766631131466,-151.0,0.00035616,31]
[399711780,1766631131476,-151.0,0.00035616,31]
[399711781,1766631131486,-151.0,0.00035616,31]
[399711782,1766631131496,-151.0,0.00035616,31]
[399711783,1766631131506,-151.0,0.00035616,31]
[399711784,1766631131515,-151.0,0.00035616,31]
[399711785,1766631131527,-151.0,0.00035616,31]
[399711786,1766631131538,-151.0,0.00035616,31]
[399711787,1766631131550,-151.0,0.00035616,31]
[399711788,1766631131560,-151.0,0.00035616,31]
[399711789,1766631131570,-151.0,0.00035616,31]
[399711790,1766631131580,-151.0,0.00035616,31]
[399711791,1766631131589,-151.0,0.00035616,31]
[399711792,1766631131599,-151.0,0.00035616,31]
[399711793,1766631131608,-269.969362,0.00035616,31]
[399711794,1766631131618,-200.0,0.0003565,10]
[399711795,1766631131628,-1678.0,0.00035685,120]
[399711796,1766631131637,-6094.52,0.000358,2]
[399711797,1766631131647,-500.0,0.0003589,11]
[399711798,1766631131656,-500.0,0.0003589,2]
[399711799,1766631131665,-500.0,0.0003589,11]
[399711800,1766631131675,-500.0,0.0003589,11]
[399711801,1766631131685,-714.65,0.0003589,7]
[399711802,1766631131694,-601.63551085,0.0003589,11]
[399711803,1766631131704,-500.0,0.0003589,11]
[399711804,1766631131713,-1367.09,0.0003589,11]
[399711805,1766631131722,-296.21664317,0.0003589,11]
[399711806,1766631131731,-500.0,0.0003589,2]
[399711807,1766631131741,-1354.83,0.0003589,2]
[399711808,1766631131751,-500.0,0.0003589,11]
[399711809,1766631131760,-641.85,0.0003589,10]
[399711810,1766631131769,-197.40942894,0.0003589,11]